Cogmind - Beta 14 --- EXPLORER MODE // 2025.04.23 @ 21:17:59 Player: GermanMO Result: Destroyed by as-24928 with Assembled Heavy Rifle Performance ------------- Evolutions (0) 0 Regions Visited (2) 400 Robots Destroyed (6) 30 Value Destroyed (121) 121 Prototype IDs (0) 0 Alien Tech Used (0) 0 Bonus (0) 0 TOTAL SCORE: 551 Bonus ------- None Cogmind --------- Core Integrity 0/250 Matter 300/300 Energy 100/100 System Corruption 2% Temperature Cool (6) Movement Core (50) Location -10/Mines Parts ------- > --- POWER (1) -------- (None) > --- PROPULSION (3) --- (None) > --- UTILITY (2) ------ (None) > --- WEAPON (2) ------- (None) > --- INVENTORY (5) ---- Targeting Computer Targeting Computer Peak State ------------ > --- POWER ------------ Ion Engine > --- PROPULSION ------- Flight Unit Flight Unit Flight Unit > --- UTILITY ---------- (None) > --- WEAPON ----------- Small Laser Particle Gun > --- INVENTORY -------- Targeting Computer Targeting Computer [Rating: 7] Favorites ----------- Power Ion Engine Engine Ion Engine Propulsion Flight Unit Leg Aluminum Leg Flight Unit Flight Unit Utility None Weapon Small Laser Energy Gun Small Laser Build | -11 -10 -10 ------- Run | Yrd Mat Min Slots Evolved 1 | . 1 . Power . | . . . Propulsion 1 | . 1 . Utility . | . . . Weapon . | . . . Parts Attached 8 | 3 2 3 Power 1 | 1 . . Engine 1 | 1 . . Core . | . . . Reactor . | . . . Propulsion 5 | 2 . 3 Treads . | . . . Leg 2 | 2 . . Wheel . | . . . Hover . | . . . Flight 3 | . . 3 Utility . | . . . Device . | . . . Storage . | . . . Processor . | . . . Hackware . | . . . Protection . | . . . Artifact . | . . . Weapon 2 | . 2 . Energy Gun 2 | . 2 . Energy Cannon . | . . . Ballistic Gun . | . . . Ballistic Cannon . | . . . Launcher . | . . . Special Weapon . | . . . Impact Weapon . | . . . Slashing Weapon . | . . . Piercing Weapon . | . . . Special Melee Weapon . | . . . Unidentified Prototypes . | . . . Parts Lost 6 | . . 6 Power 1 | . . 1 Propulsion 3 | . . 3 Utility . | . . . Weapon 2 | . . 2 Highest Loss Streak 6 | . . 6 To Critical Strikes . | . . . Average Slot Usage (%) 31 | . 16 39 Engine 11 | . 12 11 Flight 2 | . . 3 Energy Gun 17 | . 4 24 Peak Build Rating 7 | 3 4 7 Average Rating 3 | . 1 4 On Entrance 1 | . 1 4 Naked Turns . | . . . Heaviest Build 9 | 5 9 9 Greatest Support 12 | 3 3 12 Greatest Overweight (x) 2 | 1 2 2 Average Overweight (x) 1 | . 1 1 Largest Inventory Capacity 5 | 5 5 5 Average Capacity 5 | 5 5 5 Most Carried 5 | 2 3 5 Average Carried 1 | 1 2 2 Final Capacity 5 | 5 5 5 Final Carried 2 | 2 2 2 Class Distribution -------------------- 97% | Hacker-Mutant Dominant Class ---------------- Hacker-Mutant | -10/Materials Hacker-Mutant | -10/Mines Resources | -11 -10 -10 ----------- Run | Yrd Mat Min Matter Collected 277 | 132 118 27 Remotely . | . . . Salvage Created 186 | . 105 81 Parts 15 | . 5 10 Haulers Intercepted . | . . . Recyclers Shooed 1 | . . 1 Parts Field Recycled . | . . . Retrieved Matter . | . . . Parts Self-Destructed . | . . . Prevented . | . . . Kills | -11 -10 -10 ------- Run | Yrd Mat Min Combat Hostiles Destroyed 8 | . 2 6 Melee 1 | . 1 . Guns 7 | . 1 6 Classes Destroyed 3 | . 1 2 Swarmer 4 | . . 4 Grunt 2 | . 2 . Assembled 2 | . . 2 Best Kill Streak 4 | . 1 4 Combat Bots Only 4 | . 1 4 Max Kills in Single Turn 1 | . 1 1 Gunslinging . | . . . Exploded . | . . . Melee 1 | . 1 . Uniques/NPCs Destroyed . | . . . Combat | -11 -10 -10 -------- Run | Yrd Mat Min Hostile Shots Fired 88 | . 21 67 Missed 27 | . 6 21 Damage Taken 532 | . 141 391 Core 259 | . 76 183 Absorbed by Shields . | . . . Ignored by Resistances 318 | . 79 239 Core Remaining (%) 100 | 100 . . Volleys Fired 23 | . 9 14 Largest 2 | . 1 2 Hottest 105 | . 40 105 Shots Fired 31 | . 9 22 Gun 31 | . 9 22 Cannon . | . . . Launcher . | . . . Special . | . . . Kinetic . | . . . Thermal 31 | . 9 22 Explosive . | . . . Electromagnetic . | . . . Robot Hit Streak 12 | . 6 12 Robot Miss Streak 3 | . 1 3 Penetration Max . | . . . Secondary Targets 2 | . . 2 Max Gunslinging Chain 1 | . . 1 Shots Hit Robots 23 | . 8 15 Core Hits 15 | . 6 9 Critical Kills . | . . . Critical Parts Destroyed . | . . . Critical Strikes . | . . . Melee Attacks . | . . . Impact . | . . . Slashing . | . . . Piercing . | . . . Sneak Attacks . | . . . Combat Hostiles . | . . . Follow-up Attacks . | . . . Damage Inflicted 332 | . 113 219 Guns 309 | . 90 219 Cannons . | . . . Explosions . | . . . Melee . | . . . Ramming 23 | . 23 . Kinetic . | . . . Thermal 309 | . 90 219 Explosive . | . . . Electromagnetic . | . . . Impact . | . . . Slashing . | . . . Piercing . | . . . Highest Corruption 2 | . 2 2 Average Corruption 2 | . 2 2 Corruption Purged . | . . . Corruption Blocked . | . . . Effects 12 | . 2 10 Message Errors 3 | . 2 1 Heat Flow Errors 1 | . . 1 Energy Discharges 3 | . . 3 Data Loss (major) 2 | . . 2 Misfires 2 | . . 2 Weapon Failures 1 | . . 1 Overload Shots . | . . . Overflow Damage . | . . . Projectiles . | . . . Explosions . | . . . Melee . | . . . Knockbacks . | . . . Impact . | . . . Kinetic . | . . . Secondary . | . . . Self-Inflicted Damage 10 | . 10 . Shots . | . . . Rammed 7 | . 7 . Targets Rammed 7 | . 7 . Kicked . | . . . Crushed . | . . . Highest Temperature 223 | . 36 223 Average Temperature 67 | . 19 78 Received Heat Transfer 283 | . 123 160 Siege Activations . | . . . Robots Corrupted . | . . . Combat Hostiles . | . . . Parts Fried . | . . . Impact Corruptions . | . . . Robots Melted . | . . . Combat Hostiles . | . . . Parts Melted . | . . . Heat Transferred 708 | . 200 508 Parts Sabotaged . | . . . Parts Stolen . | . . . Parts Stripped . | . . . Power Chain Reactions . | . . . Alert | -11 -10 -10 ------- Run | Yrd Mat Min Peak Influence 100 | . 80 100 Initial 22 | . . 22 Average 20 | . 20 23 Maximum Alert Level . | . . . Low Security (%) 100 | 100 100 100 Level 1 . | . . . Level 2 . | . . . Level 3 . | . . . Level 4 . | . . . Level 5 . | . . . High Security . | . . . Max Security . | . . . Squads Dispatched . | . . . Investigation . | . . . Extermination . | . . . Reinforcement . | . . . Assault . | . . . Garrison . | . . . Intercept . | . . . Searches Triggered . | . . . Construction Impeded . | . . . Haulers Reinforced . | . . . Active Scanning Responses . | . . . Cargo Convoy Interrupts . | . . . Stealth | -11 -10 -10 --------- Run | Yrd Mat Min Distress Signals . | . . . Communications Jammed . | . . . Distress Signals . | . . . Times Spotted 29 | . 3 26 Peak Tracking Total 14 | . 2 14 Tactical Retreats 3 | . 1 2 Traps | -11 -10 -10 ------- Run | Yrd Mat Min Traps Triggered . | . . . Indirectly . | . . . Trap Hack Attempts . | . . . Triggered . | . . . Disarmed . | . . . Reprogrammed . | . . . Reused . | . . . Traps Extracted . | . . . Installed . | . . . Triggered . | . . . Machines | -11 -10 -10 ---------- Run | Yrd Mat Min Machines Disabled . | . . . Max in Single Turn . | . . . Machines Repaired . | . . . Machines Dismantled . | . . . Machines Sabotaged . | . . . Overloaded Fab Kills . | . . . Hacking | -11 -10 -10 --------- Run | Yrd Mat Min Machines Accessed 1 | . 1 . Terminals 1 | . 1 . Fabricators . | . . . Repair Stations . | . . . Recycling Units . | . . . Scanalyzers . | . . . Garrison Access . | . . . Total Hacks 1 | . 1 . Successful 1 | . 1 . Failed . | . . . Catastrophic . | . . . Database Lockouts . | . . . Manual . | . . . Terminals 1 | . 1 . Fabricators . | . . . Repair Stations . | . . . Recycling Units . | . . . Scanalyzers . | . . . Garrison Access . | . . . Terminal Hacks 1 | . 1 . Zone Layout 1 | . 1 . Fabricator Hacks . | . . . Repair Station Hacks . | . . . Recycling Unit Hacks . | . . . Scanalyzer . | . . . Garrison Access Hacks . | . . . Unauthorized Hacks . | . . . Terminals . | . . . Fabricators . | . . . Repair Stations . | . . . Recycling Units . | . . . Scanalyzers . | . . . Garrison Access . | . . . Data Cores Recovered . | . . . Used . | . . . Hacking Detections . | . . . Full Trace Events . | . . . Feedback Events . | . . . Feedback Blocked . | . . . Robot Schematics Acquired . | . . . Robots Built . | . . . Authchips . | . . . Time . | . . . Total Robot Build Rating . | . . . Part Schematics Acquired . | . . . Parts Built . | . . . Authchips . | . . . Time . | . . . Total Part Build Rating . | . . . Parts Repaired . | . . . Time . | . . . Parts Recycled . | . . . Recycled Matter . | . . . Retrieved Matter . | . . . Retrieved Components . | . . . Parts Scanalyzed . | . . . Part Schematics Acquired . | . . . Parts Damaged . | . . . Bothacking | -11 -10 -10 ------------ Run | Yrd Mat Min Used RIF Installer . | . . . Robots Hacked . | . . . Non-combat . | . . . Combat . | . . . Robot Hacks Applied . | . . . Relay Couplers Released . | . . . Fabnet Peak Effective % . | . . . Robots Rewired . | . . . Allies Hacked . | . . . Hacks Repelled . | . . . Allies | -11 -10 -10 -------- Run | Yrd Mat Min Total Allies . | . . . Largest Group . | . . . Highest-Rated Group . | . . . Highest-Rated Ally . | . . . Total Orders . | . . . Ally Attacks . | . . . Total Damage . | . . . Kills . | . . . Allies Corrupted . | . . . Allies Melted . | . . . Intel | -11 -10 -10 ------- Run | Yrd Mat Min Robot Analysis Total . | . . . Derelict Logs Recovered . | . . . Drone Launches . | . . . Drone Recoveries . | . . . Exploration | -11 -10 -10 ------------- Run | Yrd Mat Min Turns Passed 1007 | 56 331 620 Spaces Moved 661 | 35 270 356 Core 559 | 35 270 254 Treads . | . . . Legs . | . . . Wheels . | . . . Hover . | . . . Flight 102 | . . 102 Fastest Speed 34 | 50 100 34 Average Speed 111 | 97 105 117 Slowest Speed 150 | 100 150 150 Overloaded Moves . | . . . Propulsion Burnouts . | . . . Robots Hopped 1 | . . 1 Cave-ins Triggered . | . . . Exploration Rate (%) 37 | 3 36 74 Regions Visited 2 Branch Regions 1 Pre-discovered Areas 1 | . . 1 Known Exits Taken 2 | 1 1 . Unknown Exits Taken . | . . . Scrap Searched . | . . . Spaces Dug . | . . . Terrain Destroyed . | . . . Melee . | . . . Projectile . | . . . AOE . | . . . Terrain Rammed . | . . . Walls Destroyed . | . . . Machines Disabled . | . . . Actions | -11 -10 -10 --------- Run | Yrd Mat Min Total 900 | 57 307 536 Wait 192 | 13 18 161 Move 657 | 34 269 354 Hop 1 | . . 1 Pick Up 10 | 5 2 3 Fast Attach . | . . . Attach 8 | 3 2 3 Detach . | . . . Swap . | . . . Drop 2 | 2 . . Fire 23 | . 9 14 Melee . | . . . Ram 7 | . 7 . Kick . | . . . Crush . | . . . Escape Stasis . | . . . Rewire . | . . . Trap . | . . . Miscellaneous . | . . . Route ------- -11/Scrapyard -10/Materials -10/Mines History --------- Turn | Location | Event 39 | -11/Scrapyard | Identified exit to Materials 39 | -11/Scrapyard | Discovered exit to Materials (range 13) 57 | -11/Scrapyard | Entered Materials 57 | -10/Materials | Evolved 1 slot: Propulsion x1 181 | -10/Materials | Identified exit to Mines 181 | -10/Materials | Discovered exit to Mines (range 16) 305 | -10/Materials | Build established: Hacker-Mutant 388 | -10/Materials | Entered Mines 433 | -10/Mines | Met a Derelict bent on vengeance 811 | -10/Mines | Learned location of Storage (-9) 967 | -10/Mines | Assembled infested the area 982 | -10/Mines | Core integrity fell below 50% 1005 | -10/Mines | Core integrity fell below 20% 1008 | -10/Mines | Destroyed by as-24928 with Assembled Heavy Rifle Last Messages --------------- as-19026 destroyed. as-23460 destroyed. K-01 Serf collects debris. D-53 Grenadier Lgt. Deuterium Engine severed. as-46199 destroyed. as-79068 destroyed. as-87246 destroyed. The unstable cave ceiling collapses. D-53 Grenadier destroyed. Flight Unit destroyed. K-01 Serf collects debris. Destroyed Asb. Hover Unit. as-82617 sneak attacks. R-06 Scavenger collects Lgt. Assault Rifle. K-01 Serf destroyed. R-06 Scavenger destroyed. T-07 Excavator is excavating. Particle Gun destroyed. Critical hit (Burn: +80). Flight Unit destroyed. Map ----- +----------------------------------------------------+ | | | | | | | | | | | | | | | | | | | | | | | ?????????????????????????????????????????????????? | | ?????????????????????????????????????????????????? | | ?????????????????????????????????????????????????? | | ?????????????????????????????????????????????????? | | ?????????????????????????????????????????????????? | | ?????????????????????????????????????????????????? | | ?????????????????????????????????????????????###?? | | ????????????##?????????????????????? ?????## ## | | ????????????? ###??????????????????# #### | | ?????????????# #?####?????????????? | | ?????????????# ### ##???????????????????## | | ?????????????# ## #????????????????????## | | ?????????????# # ##????????????????????### | | ?????????????# a #####??????####????????## | | ?????????????# aaa!@ ##????## ##????????# | | ?????????????# ###aaa[ ###?## ########## | | ?????????????# ##?## =* ### | | ?????????????## ##???## a = [ ########### | | ??????????????####?????## ![ ** #?????????? | | ???????????????????????## =*%## ##?????????? | | ???????????????????????# % #### ##??????????? | | ???????????????????????# !##??#####??????????## | | ???????????????????????# ##????????????????## | | ??????????????????????## #?????????????????# | | ?????????????????????## #????????????????## | | ????????????????????## #??????###??????## | | ????????????????????# ##????## #????## # | | ????????????????????# ##??## ##### #? | | ?????????????# =## #### ## | | ????????????# *% """ | | ??????????# % """ | | ??????? %*% ##### """ #### | | ????????## %#=%= #####???## =#??? | | ?????????## ## ##????????## ### *#??? | | ?????????????# #??????????# #??# #??? | | ?????????????# ##??????????## ##???# #### | | ???????????? ###?????????????###?????# | | ??????????# ### #????????????????????????# | | ??????????#???## #?????????????????????????##### | +----------------------------------------------------+ Best States ------------- Heat Dissipation 25 Energy Generation 10 Energy Capacity 250 Matter Stores 300 Matter Capacity 300 Sight Range 16 Terrain Scan Density 10 Resistance: KI 35 Resistance: TH 35 Resistance: EX 35 Resistance: EM 35 Resistance: I 35 Resistance: S 35 Resistance: P 35 Evasion (%) 63 Offensive Hacking 20 Item Schematics ----------------- None Robot Schematics ------------------ None Fabricated ------------ Nothing Alien Tech Used ----------------- None Achievements -------------- Fist Fight Challenges ------------ None Game ------ Seed CompanionReactionBuckler Manual? 0 Play Time 00:29:47 Cumulative 14.7 hours Start 2025.04.19 @ 18:42:55 End 2025.04.23 @ 21:17:59 Sessions 3 Manual Loads 0 Difficulty Explorer Special Mode None Game No. 14 Rogue 0 Adventurer 0 Explorer 14 Win Type - Total 0 Types 0/0/0/0/0/0/0/0/0 Lore% 6 Gallery% 19 Achievement% 16 Wizard Run 0 Options --------- Layout 1 ASCII 0 Keyboard 0 Movement Mouse Keybinds 0 Fullscreen 1 Font 24/Smallcaps Map View 50x35 Zoom Use 0% Tactical HUD 0 Map Filters NONE Filters NONE Steam 1 RUN: 96367335-1fc9-4646-ac44-c634a31bde64